bitfinex/quotes_BTCUSD_20240827
["timestamp","ask_amount","ask_price","bid_price","bid_amount"]
[1724756205726,0.00171257,62457.0,62456.0,0.84608567]
[1724756208986,0.00171257,62457.0,62456.0,0.52586067]
[1724756211152,0.00171257,62457.0,62456.0,0.84608567]
[1724756211805,0.0942,62461.0,62459.0,0.24816211]
[1724756211806,0.09291257,62461.0,62459.0,0.24816211]
[1724756212248,0.14803126,62460.0,62456.0,0.023]
[1724756212467,0.1,62459.0,62456.0,0.023]
[1724756213177,0.1,62459.0,62451.0,0.08805811]
[1724756214107,0.1,62459.0,62449.0,0.160952]
[1724756214108,0.1231,62457.0,62456.0,0.007]
[1724756214338,1.46192811,62457.0,62456.0,0.013]
[1724756214564,1.90156717,62457.0,62456.0,0.006]
[1724756214801,1.120857,62452.0,62451.0,0.006]
[1724756215019,0.08805811,62451.0,62449.0,0.000823]
[1724756215242,1.39697963,62450.0,62449.0,0.000823]
[1724756215559,1.49696515,62450.0,62449.0,0.000823]
[1724756215562,1.44922454,62450.0,62449.0,0.000823]
[1724756215787,0.801652,62449.0,62448.0,0.000823]
[1724756216027,1.65815626,62449.0,62448.0,0.000823]
[1724756216250,2.13750383,62449.0,62448.0,0.000823]
[1724756216931,2.14250383,62449.0,62448.0,0.001823]
[1724756217167,2.14250383,62449.0,62448.0,0.000823]
[1724756217403,2.14250383,62449.0,62436.0,0.00823]
[1724756217404,1.121022,62443.0,62436.0,0.00823]
[1724756217612,1.336722,62443.0,62436.0,0.00823]
[1724756217842,1.436722,62443.0,62436.0,0.00823]
[1724756218563,1.48435202,62443.0,62436.0,0.00823]
[1724756218988,1.16406002,62443.0,62436.0,0.00823]
[1724756219211,0.36791307,62446.0,62441.0,0.1148]
[1724756219451,0.160141,62445.0,62441.0,0.1148]
[1724756219679,0.0932,62446.0,62441.0,0.1148]
[1724756220607,0.004,62443.0,62442.0,0.001823]
[1724756220819,0.01,62443.0,62442.0,0.001823]
[1724756221317,0.0942,62446.0,62442.0,0.000823]
[1724756221545,0.1,62445.0,62442.0,0.000823]
[1724756221757,0.1,62445.0,62442.0,0.003823]
[1724756222202,0.1,62445.0,62442.0,0.000823]
[1724756222653,0.253339,62446.0,62442.0,0.000823]
[1724756222875,0.1,62445.0,62442.0,0.000823]
[1724756224201,0.1,62445.0,62442.0,0.002823]
[1724756224202,0.260141,62445.0,62442.0,0.002823]
[1724756224438,0.1,62445.0,62442.0,0.002823]
[1724756224669,0.1932,62446.0,62442.0,0.002823]
[1724756224887,0.1932,62446.0,62442.0,0.003823]
[1724756225316,0.1932,62446.0,62442.0,0.005823]
[1724756225537,0.1932,62446.0,62442.0,0.002823]
[1724756225763,0.1932,62446.0,62442.0,0.005823]
[1724756226398,0.1,62445.0,62442.0,0.005823]
[1724756227244,0.1,62445.0,62442.0,0.000823]
[1724756227463,0.1,62445.0,62442.0,0.001823]
[1724756227676,0.1,62446.0,62442.0,0.003823]
[1724756228109,0.1,62446.0,62442.0,0.006823]
[1724756228559,0.001,62445.0,62442.0,0.012823]
[1724756228763,0.001,62445.0,62442.0,0.006823]
[1724756228967,0.1,62446.0,62442.0,0.000823]
[1724756229187,0.260138,62446.0,62442.0,0.005823]
[1724756229409,0.1,62446.0,62443.0,0.1272]
[1724756229679,0.260136,62447.0,62443.0,0.1272]
[1724756231242,0.1,62447.0,62443.0,0.1272]
[1724756231447,0.1,62447.0,62443.0,0.1362]
[1724756232065,0.1,62447.0,62443.0,0.1312]
[1724756232557,0.260135,62447.0,62443.0,0.1352]
[1724756233574,0.1,62447.0,62443.0,0.1352]
[1724756234427,0.260136,62447.0,62443.0,0.1352]
[1724756235457,0.1,62447.0,62443.0,0.226]
[1724756235661,0.1610403,62448.0,62443.0,0.226]
[1724756235864,0.1,62447.0,62443.0,0.226]
[1724756236130,0.260135,62447.0,62443.0,0.226]
[1724756236316,0.260135,62447.0,62443.0,0.1352]
[1724756236524,0.160138,62446.0,62443.0,0.008]
[1724756236736,0.1,62445.0,62443.0,0.008]
[1724756236946,0.260137,62447.0,62443.0,0.008]
[1724756237384,0.260137,62447.0,62443.0,0.004]
[1724756237588,0.260137,62447.0,62443.0,0.005]
[1724756237766,0.260137,62447.0,62443.0,0.01]
[1724756237973,0.260137,62447.0,62443.0,0.005]
[1724756238170,0.260137,62447.0,62443.0,0.009]
[1724756238370,0.260137,62447.0,62443.0,0.004]
[1724756239154,0.160141,62445.0,62443.0,0.008]
[1724756239383,0.1,62447.0,62443.0,0.008]
[1724756239384,0.1,62444.0,62443.0,0.008]
[1724756240161,0.1,62444.0,62443.0,0.004]
[1724756240345,0.1,62444.0,62443.0,0.01]
[1724756240760,0.1,62444.0,62442.0,0.000823]
[1724756241192,0.1,62444.0,62443.0,0.013]
[1724756241607,0.1,62444.0,62443.0,0.007]
[1724756242010,0.101,62444.0,62442.0,0.007823]
[1724756242519,0.1,62444.0,62442.0,0.000823]
[1724756243455,0.260144,62444.0,62442.0,0.007823]
[1724756243706,0.21827843,62443.0,62442.0,0.007823]
[1724756243931,1.07639097,62443.0,62442.0,0.007823]
[1724756244151,1.43855054,62443.0,62442.0,0.007823]
[1724756244368,1.11533,62443.0,62442.0,0.007823]
[1724756245040,0.99733,62443.0,62442.0,0.000823]
[1724756245673,0.99833,62443.0,62442.0,0.000823]
[1724756246112,0.678038,62443.0,62442.0,0.000823]
[1724756247630,0.677038,62443.0,62442.0,0.000823]
[1724756248033,0.260146,62443.0,62442.0,0.000823]
[1724756248271,0.261146,62443.0,62442.0,0.000823]
[1724756248495,0.101,62443.0,62442.0,0.000823]
[1724756250066,0.001,62443.0,62442.0,0.000823]
[1724756254060,0.001,62443.0,62442.0,0.118523]
[1724756254284,0.001,62443.0,62442.0,0.197623]
[1724756254502,0.001,62443.0,62442.0,0.20082554]
[1724756255169,0.001,62443.0,62442.0,0.36097354]
[1724756255648,0.001,62443.0,62442.0,0.81676754]
[1724756255890,0.001,62443.0,62442.0,0.82876754]
[1724756256106,0.001,62443.0,62442.0,1.02846754]
[1724756256600,0.001,62443.0,62442.0,1.53165824]
[1724756257522,0.001,62443.0,62442.0,1.5284557]
[1724756257996,0.0009053,62448.0,62447.0,1.001377]
[1724756258213,0.0009053,62448.0,62447.0,1.024377]
[1724756258673,0.0009053,62448.0,62447.0,1.24478874]
[1724756258909,0.00071257,62448.0,62447.0,1.24478874]
[1724756259371,0.00071257,62448.0,62447.0,1.57905974]
[1724756261451,0.00071257,62448.0,62447.0,1.59305974]
[1724756261666,0.00071257,62448.0,62447.0,1.75197783]
[1724756261883,0.00071257,62448.0,62447.0,1.75295344]
[1724756266886,0.00071257,62448.0,62447.0,1.43170683]
[1724756267101,0.00071257,62448.0,62447.0,1.21129509]
[1724756267557,0.00071257,62448.0,62447.0,0.309735]
[1724756267856,0.00071257,62448.0,62447.0,0.31293698]
[1724756268538,0.00071257,62448.0,62447.0,0.63320798]
[1724756268756,0.00071257,62448.0,62447.0,0.31293698]
[1724756268980,0.00071257,62448.0,62447.0,0.63320798]
[1724756270360,0.00071257,62448.0,62447.0,0.95347898]
[1724756270581,0.00071257,62448.0,62447.0,0.97647898]
[1724756272104,0.00071257,62448.0,62447.0,0.973277]
[1724756275243,0.00071257,62448.0,62447.0,1.371548]
[1724756275684,0.00071257,62448.0,62447.0,1.59195974]
[1724756276346,0.00071257,62448.0,62447.0,1.75185344]
[1724756277464,0.00071257,62448.0,62447.0,1.75170083]
[1724756277923,0.00071257,62448.0,62447.0,1.75267644]
[1724756279313,0.00071257,62448.0,62447.0,1.59278274]
[1724756279537,0.00071257,62448.0,62447.0,1.0521]
[1724756282340,0.00071257,62448.0,62447.0,1.372371]
[1724756286405,0.00071257,62448.0,62447.0,1.5322647]
[1724756287582,0.00071257,62448.0,62447.0,1.53128909]
[1724756287794,0.00071257,62448.0,62447.0,1.5322647]
[1724756288691,0.00071257,62448.0,62447.0,1.53128909]
[1724756289175,0.00071257,62448.0,62447.0,1.372371]
[1724756291436,0.00071257,62448.0,62447.0,1.5322647]
[1724756294168,0.00071257,62448.0,62447.0,1.53128909]
[1724756294394,0.00071257,62448.0,62447.0,1.372371]
[1724756300167,0.00071257,62448.0,62447.0,1.46042295]
[1724756301271,0.00071257,62448.0,62447.0,1.66821759]
[1724756301495,0.00071257,62448.0,62447.0,2.04749507]
[1724756301723,0.00071257,62448.0,62447.0,2.08648549]
[1724756302391,0.00071257,62448.0,62447.0,2.0868207]
[1724756302613,0.00071257,62448.0,62447.0,2.04774701]
[1724756302838,0.00071257,62448.0,62447.0,1.69242817]
[1724756303055,0.00071257,62448.0,62447.0,1.6684007]
[1724756303266,0.00071257,62448.0,62447.0,1.5904007]
[1724756305630,0.00071257,62448.0,62447.0,1.54231665]
[1724756306064,0.00071257,62448.0,62447.0,1.4542647]
[1724756306819,0.00071257,62448.0,62447.0,1.5324647]
[1724756307026,0.00071257,62448.0,62447.0,1.4542647]
[1724756307246,0.00071257,62448.0,62447.0,1.80959622]
[1724756308556,0.00071257,62448.0,62447.0,1.82463589]
[1724756308766,0.00071257,62448.0,62447.0,1.52638899]
[1724756309009,0.00071257,62448.0,62447.0,1.80960092]
[1724756309238,0.00071257,62448.0,62447.0,1.88172434]
[1724756309474,0.00071257,62448.0,62447.0,1.8817177]
[1724756310175,0.00071257,62448.0,62447.0,1.80959465]
[1724756310378,0.00071257,62448.0,62447.0,1.82697714]
[1724756311112,0.00071257,62448.0,62447.0,1.89909645]
[1724756311324,0.00071257,62448.0,62447.0,1.88171388]
[1724756311781,0.00071257,62448.0,62447.0,1.52638393]
[1724756312017,0.00071257,62448.0,62447.0,1.52638411]
[1724756312243,0.00071257,62448.0,62447.0,1.54376685]
[1724756312472,0.00071257,62448.0,62447.0,1.52638411]
[1724756312739,0.00071257,62448.0,62447.0,1.54376685]
[1724756313393,0.00051984,62448.0,62447.0,1.54376685]
[1724756314719,0.00051984,62448.0,62447.0,1.62606685]
[1724756315638,0.00051984,62448.0,62447.0,1.98139997]
[1724756315868,0.00051984,62448.0,62447.0,1.90928053]
[1724756316300,0.00051984,62448.0,62447.0,2.32571074]
[1724756316760,0.00051984,62448.0,62447.0,2.22955153]
[1724756317419,0.00051984,62448.0,62447.0,2.3257001]
[1724756317905,0.0039053,62459.0,62458.0,1.44194261]
[1724756318143,0.0039053,62459.0,62458.0,2.4744706]
[1724756318371,0.0039053,62459.0,62458.0,2.37833912]
[1724756318596,0.0039053,62459.0,62458.0,2.49841262]
[1724756319307,0.0039053,62459.0,62458.0,2.51141262]
[1724756319536,0.0039053,62459.0,62458.0,2.59742889]
[1724756319761,0.0039053,62459.0,62458.0,2.58442889]
[1724756319991,0.0039053,62459.0,62458.0,2.47835539]
[1724756320456,0.0039053,62459.0,62458.0,2.051006]
[1724756321602,0.0039053,62459.0,62458.0,2.09899331]
[1724756323192,0.0039053,62459.0,62458.0,2.10845157]
[1724756323398,0.0039053,62459.0,62458.0,2.06046426]
[1724756326506,0.0039053,62459.0,62458.0,1.65181539]
[1724756326990,0.0039053,62459.0,62458.0,1.652791]
[1724756327906,0.0039053,62459.0,62458.0,1.65181539]
[1724756328133,0.0039053,62459.0,62458.0,1.63781539]
[1724756328370,0.0039053,62459.0,62458.0,1.65181539]
[1724756328864,0.0039053,62459.0,62458.0,1.63781539]
[1724756329340,0.0039053,62459.0,62458.0,1.65181539]
[1724756329566,0.0039053,62459.0,62458.0,1.63781539]
[1724756330457,0.0039053,62459.0,62458.0,1.65181539]
[1724756330690,0.0039053,62459.0,62458.0,1.63781539]
[1724756330921,0.0039053,62459.0,62458.0,1.65181539]
[1724756331565,0.0039053,62459.0,62458.0,1.652791]
[1724756332527,0.0039053,62459.0,62458.0,1.65181539]
[1724756332957,0.0039053,62459.0,62458.0,1.55081539]
[1724756333414,0.0856053,62459.0,62458.0,1.55081539]
[1724756334538,0.0856053,62459.0,62458.0,1.3918973]
[1724756334990,0.0856053,62459.0,62458.0,1.394992]
[1724756335203,0.0856053,62459.0,62458.0,1.3918973]
[1724756335882,0.0856053,62459.0,62458.0,1.394992]
[1724756336094,0.0856053,62459.0,62458.0,1.25977811]
[1724756336342,0.0856053,62459.0,62458.0,1.26287281]
[1724756336986,0.0856053,62459.0,62458.0,1.25977811]
[1724756337653,0.0039053,62459.0,62458.0,1.25977811]
[1724756337871,0.0039053,62459.0,62458.0,1.5236962]
[1724756338134,0.0039053,62459.0,62458.0,1.6030962]
[1724756340136,0.0039053,62459.0,62458.0,1.5236962]
[1724756340793,0.0039053,62459.0,62458.0,1.5267909]
[1724756341047,0.0039053,62459.0,62458.0,0.028]
[1724756341286,0.0039053,62459.0,62458.0,0.27922781]
[1724756341287,0.1772053,62459.0,62458.0,0.27922781]
[1724756341524,0.0815053,62459.0,62458.0,0.59634811]
[1724756341761,0.0815053,62459.0,62458.0,0.91965781]
[1724756341762,0.0039053,62459.0,62458.0,0.91965781]
[1724756342184,0.0039053,62459.0,62458.0,0.8176317]
[1724756342369,0.0039053,62459.0,62458.0,0.828537]
[1724756342621,0.0039053,62459.0,62458.0,0.8316317]
[1724756342839,0.0039053,62459.0,62458.0,0.8176317]
[1724756343053,0.0039053,62459.0,62458.0,0.8316317]
[1724756343708,0.0039053,62459.0,62458.0,0.828537]
[1724756343937,0.0039053,62459.0,62458.0,0.8176317]
[1724756344471,0.0039053,62459.0,62458.0,0.8316317]
[1724756344796,0.0039053,62459.0,62458.0,0.8176317]
[1724756345022,0.0039053,62459.0,62458.0,0.8316317]
[1724756345481,0.0039053,62459.0,62458.0,0.828537]
[1724756345725,0.0039053,62459.0,62458.0,1.1518467]
[1724756345882,0.0039053,62459.0,62458.0,1.51846479]
[1724756347537,0.0039053,62459.0,62458.0,1.43416479]
[1724756347752,0.0039053,62459.0,62458.0,0.0310947]
[1724756347961,0.0878053,62459.0,62458.0,0.0310947]
[1724756350160,0.0878053,62459.0,62458.0,0.1912017]
[1724756350369,0.0878053,62459.0,62458.0,0.0310947]
[1724756350576,0.0878053,62459.0,62458.0,0.028]
[1724756350785,0.0878053,62459.0,62458.0,0.1912017]
[1724756350990,0.0878053,62459.0,62458.0,0.188107]
[1724756351207,0.0878053,62459.0,62458.0,0.1912017]
[1724756351412,0.0878053,62459.0,62458.0,0.5114167]
[1724756351614,0.0039053,62459.0,62458.0,0.5114167]
[1724756351807,0.0039053,62459.0,62458.0,0.1912017]
[1724756352013,0.0039053,62459.0,62458.0,0.19440351]
[1724756352259,0.0039053,62459.0,62458.0,0.51461851]
[1724756352659,0.0039053,62459.0,62458.0,1.3347404]
[1724756352887,0.0039053,62459.0,62458.0,0.1912017]
[1724756353137,0.1829053,62459.0,62458.0,0.1912017]
[1724756353405,0.1829053,62459.0,62458.0,0.0310947]
[1724756354284,0.1829053,62459.0,62458.0,0.028]
[1724756354594,0.1829053,62459.0,62458.0,0.0310947]
[1724756361857,0.0039053,62459.0,62458.0,0.2967017]
[1724756362082,0.0039053,62459.0,62458.0,0.6169167]
[1724756363411,0.0039053,62459.0,62458.0,0.613822]
[1724756363635,0.0039053,62459.0,62458.0,0.6169167]
[1724756363857,0.0039053,62459.0,62458.0,0.5114167]
[1724756364279,0.0039053,62459.0,62458.0,0.5084167]
[1724756364487,0.0039053,62459.0,62458.0,0.5114167]
[1724756365436,0.0039053,62459.0,62458.0,0.508322]
[1724756365675,0.0039053,62459.0,62458.0,0.8316317]
[1724756367231,0.0039053,62459.0,62458.0,0.83182443]
[1724756367904,0.0039053,62459.0,62458.0,0.82872973]
[1724756368117,0.0039053,62459.0,62458.0,0.83182443]
[1724756369184,0.0039053,62459.0,62458.0,0.82872973]
[1724756369404,0.0039053,62459.0,62458.0,0.83182443]
[1724756370097,0.0039053,62459.0,62458.0,0.82872973]
[1724756370569,0.0039053,62459.0,62458.0,0.83182443]
[1724756370961,0.0039053,62459.0,62458.0,0.82872973]
[1724756371225,0.0039053,62459.0,62458.0,0.83182443]
[1724756374017,0.0039053,62459.0,62458.0,0.82872973]
[1724756374232,0.0039053,62459.0,62458.0,0.83182443]
[1724756375995,0.0039053,62459.0,62458.0,0.51160943]
[1724756377137,0.0039053,62459.0,62458.0,0.83182443]
[1724756377353,0.0039053,62459.0,62458.0,0.61710943]
[1724756377598,0.0039053,62459.0,62458.0,0.61401473]
[1724756377808,0.0039053,62459.0,62458.0,0.61710943]
[1724756378232,0.0039053,62459.0,62458.0,0.70514665]
[1724756379142,0.0039053,62459.0,62458.0,0.70495392]
[1724756380204,0.0039053,62459.0,62458.0,0.70185922]
[1724756380463,0.0039053,62459.0,62458.0,0.70495392]
[1724756381121,0.0039053,62459.0,62458.0,1.02516892]
[1724756381350,0.0039053,62459.0,62458.0,0.70495392]
[1724756381557,0.0039053,62459.0,62458.0,1.02516892]
[1724756381801,0.0039053,62459.0,62458.0,0.70495392]
[1724756382023,0.0039053,62459.0,62458.0,0.70185922]
[1724756382242,0.0039053,62459.0,62458.0,0.70495392]
[1724756383299,0.0039053,62459.0,62458.0,1.02516892]
[1724756385036,0.0039053,62459.0,62458.0,0.70495392]
[1724756385942,0.0039053,62459.0,62458.0,1.02536165]
[1724756386595,0.0039053,62459.0,62458.0,1.02226695]
[1724756386813,0.0039053,62459.0,62458.0,1.02536165]
[1724756389906,0.0039053,62459.0,62458.0,0.70514665]
[1724756390559,0.0039053,62459.0,62458.0,0.61710943]
[1724756390769,0.0039053,62459.0,62458.0,0.03128743]
[1724756390770,0.1762053,62459.0,62458.0,0.03128743]
[1724756391433,0.0805053,62459.0,62458.0,0.02628743]
[1724756393828,0.0805053,62459.0,62458.0,0.02319273]
[1724756394111,0.0805053,62459.0,62458.0,0.02628743]
[1724756394545,0.0039053,62459.0,62458.0,0.93232443]
[1724756395200,0.0039053,62459.0,62458.0,0.92922973]
[1724756395430,0.0039053,62459.0,62458.0,0.93232443]
[1724756395653,0.0039053,62459.0,62458.0,1.03432443]
[1724756395871,0.0039053,62459.0,62458.0,1.35144473]
[1724756396565,0.0039053,62459.0,62458.0,1.35453943]
[1724756396785,0.0039053,62459.0,62458.0,1.35144473]
[1724756397215,0.0039053,62459.0,62458.0,1.351252]
[1724756397427,0.0039053,62459.0,62458.0,1.3543467]
[1724756397640,0.0039053,62459.0,62458.0,1.51017009]
[1724756397855,0.0039053,62459.0,62458.0,1.5111457]
[1724756398103,0.0039053,62459.0,62458.0,1.08220384]
[1724756398311,0.0039053,62459.0,62458.0,0.0260947]
[1724756400116,0.0039053,62459.0,62458.0,0.023]
[1724756400329,0.0039053,62459.0,62458.0,0.0260947]
[1724756400561,0.0039053,62459.0,62458.0,1.4261404]
[1724756400788,0.0039053,62459.0,62458.0,1.44352205]
[1724756401472,0.0039053,62459.0,62458.0,0.94041335]
[1724756401721,0.0874053,62459.0,62458.0,0.0260947]
[1724756402195,1.08997805,62459.0,62458.0,0.023]
[1724756402422,1.32215083,62459.0,62458.0,0.023]
[1724756402651,1.42215083,62459.0,62458.0,0.023]
[1724756402873,1.42215083,62459.0,62458.0,0.014]
[1724756403084,0.480376,62451.0,62450.0,9.47e-05]
[1724756403342,0.73591718,62451.0,62450.0,9.47e-05]
[1724756403559,0.75968327,62451.0,62448.0,0.000823]
[1724756403773,0.978152,62449.0,62448.0,0.000823]
[1724756403986,0.978152,62449.0,62448.0,0.0009177]
[1724756403987,1.14985594,62449.0,62448.0,0.0009177]
[1724756404214,0.37315491,62449.0,62448.0,0.000823]
[1724756404470,0.22960237,62449.0,62448.0,0.0039177]
[1724756404683,0.0818,62449.0,62448.0,0.0039177]
[1724756404908,0.0818,62449.0,62448.0,0.000823]
[1724756405142,0.160116,62455.0,62451.0,0.1024]
[1724756405143,0.04780237,62455.0,62451.0,0.1024]
[1724756405353,0.0769,62457.0,62451.0,0.1024]
[1724756405616,0.64450119,62460.0,62451.0,0.422649]
[1724756405617,0.4771,62460.0,62451.0,0.422649]
[1724756405840,0.4771,62460.0,62454.0,0.160116]
[1724756406079,0.0841,62462.0,62454.0,0.00320206]
[1724756406303,0.0841,62462.0,62455.0,0.160113]
[1724756406529,0.0841,62462.0,62456.0,0.160111]
[1724756406762,0.0841,62462.0,62454.0,0.16331806]
[1724756407194,0.244197,62462.0,62452.0,0.160121]
[1724756407417,0.160108,62458.0,62454.0,0.002]
[1724756407639,0.160111,62457.0,62454.0,0.002]
[1724756407868,0.240715,62455.0,62454.0,0.002]
[1724756408137,0.560945,62455.0,62454.0,0.003]
[1724756408377,0.69276287,62455.0,62454.0,0.003]
[1724756408610,0.74054627,62455.0,62454.0,0.003]
[1724756408821,0.69276287,62455.0,62454.0,0.003]
[1724756409051,0.37253287,62455.0,62454.0,0.003]
[1724756409293,0.240715,62455.0,62454.0,0.001]
[1724756409525,0.240715,62455.0,62448.0,0.0039177]
[1724756409526,0.40376254,62455.0,62452.0,0.001]
[1724756410000,0.0039053,62459.0,62452.0,0.0974]
[1724756410205,0.0039053,62459.0,62456.0,0.160111]
[1724756410413,0.0039053,62459.0,62456.0,0.2202909]
[1724756410847,0.0039053,62459.0,62458.0,0.266307]
[1724756411062,0.0039053,62459.0,62458.0,0.586522]
[1724756411950,0.0039053,62459.0,62458.0,0.906737]
[1724756412191,0.0039053,62459.0,62458.0,0.586522]
[1724756412617,0.0039053,62459.0,62458.0,1.4679457]
[1724756412833,0.0039053,62459.0,62458.0,1.4909457]
[1724756413061,0.0039053,62459.0,62458.0,1.5049457]
[1724756413768,0.0039053,62459.0,62458.0,1.5189457]
[1724756414001,0.0039053,62459.0,62458.0,1.5049457]
[1724756414720,0.0039053,62459.0,62458.0,1.53632554]
[1724756415822,0.0039053,62459.0,62458.0,0.97511684]
[1724756416049,0.0039053,62459.0,62458.0,0.934737]
[1724756416268,0.0039053,62459.0,62458.0,0.614522]
[1724756416478,0.0039053,62459.0,62458.0,0.934737]
[1724756416900,0.0039053,62459.0,62458.0,0.614522]
[1724756417321,0.0039053,62459.0,62458.0,0.93556]
[1724756417527,0.0039053,62459.0,62458.0,1.4156687]
[1724756417735,0.0039053,62459.0,62458.0,1.4386687]
[1724756418164,0.0039053,62459.0,62458.0,1.1184537]
[1724756418622,0.0039053,62459.0,62458.0,1.4386687]
[1724756420641,0.0039053,62459.0,62458.0,1.11747809]
[1724756421081,0.0039053,62459.0,62458.0,1.43769309]
[1724756421513,0.0039053,62459.0,62458.0,1.11747809]
[1724756422144,0.0039053,62459.0,62458.0,1.43769309]
[1724756422873,0.0039053,62459.0,62458.0,0.95856]
[1724756423106,0.0039053,62459.0,62458.0,0.028823]
[1724756423334,0.0881053,62459.0,62458.0,0.028823]
[1724756424002,0.0881053,62459.0,62458.0,0.000823]
[1724756424220,0.36203368,62459.0,62458.0,0.000823]
[1724756424464,0.6636203,62459.0,62458.0,0.013823]
[1724756424710,1.47573323,62459.0,62458.0,0.013823]
[1724756424931,1.52352851,62459.0,62458.0,0.013823]
[1724756425175,1.6824466,62459.0,62458.0,0.013823]
[1724756425384,1.6824466,62459.0,62448.0,0.000823]
[1724756425385,0.800652,62449.0,62448.0,0.000823]
[1724756425624,0.978852,62449.0,62448.0,0.000823]
[1724756425853,1.078852,62449.0,62448.0,0.000823]
[1724756426101,1.20822529,62449.0,62448.0,0.000823]
[1724756426786,1.26294297,62449.0,62448.0,0.002823]
[1724756426998,1.53548629,62449.0,62448.0,0.001823]
[1724756427287,1.62898889,62449.0,62448.0,0.000823]
[1724756427527,1.65786454,62449.0,62448.0,0.001823]
[1724756427738,1.63586621,62449.0,62448.0,0.002823]
[1724756428665,1.61199139,62449.0,62448.0,0.002823]
[1724756429160,1.54048629,62449.0,62448.0,0.002823]
[1724756429374,1.65986454,62449.0,62448.0,0.002823]
[1724756429595,1.63581801,62449.0,62448.0,0.002823]
[1724756429843,1.61195833,62449.0,62448.0,0.002823]
[1724756430086,1.58813529,62449.0,62448.0,0.002823]
[1724756430308,1.22022529,62449.0,62448.0,0.002823]
[1724756430774,0.45033,62449.0,62448.0,0.002823]
[1724756431226,0.1902,62449.0,62448.0,0.002823]
[1724756431431,0.012,62449.0,62448.0,0.002823]
[1724756432112,0.002,62449.0,62448.0,0.001823]
[1724756432347,0.00292854,62452.0,62448.0,0.000823]
[1724756432566,0.009,62449.0,62448.0,0.003823]
[1724756433218,0.02509809,62449.0,62448.0,0.000823]
[1724756433437,0.02509809,62449.0,62448.0,0.002823]
[1724756433944,0.02509809,62449.0,62448.0,0.162956]
[1724756435261,0.02509809,62449.0,62448.0,0.164956]
[1724756435701,0.02509809,62449.0,62448.0,0.004823]
[1724756436632,0.0438199,62449.0,62448.0,0.004823]
[1724756436850,0.02509809,62449.0,62448.0,0.004823]
[1724756439798,0.02509809,62449.0,62448.0,0.485222]
[1724756440022,0.02509809,62449.0,62448.0,1.53324751]
[1724756440241,0.02509809,62449.0,62448.0,1.7151656]
[1724756440694,0.02509809,62449.0,62448.0,2.03640721]
[1724756440918,0.002,62452.0,62451.0,1.21955361]
[1724756441165,0.002,62452.0,62451.0,1.8050227]
[1724756441611,0.0009053,62458.0,62457.0,1.12174561]
[1724756441832,0.0009053,62458.0,62457.0,1.6290546]
[1724756442276,0.0009053,62458.0,62457.0,1.62807899]
[1724756443397,0.0009053,62458.0,62457.0,1.6290546]
[1724756443609,0.0019053,62458.0,62457.0,1.6430546]
[1724756444053,0.0019053,62458.0,62457.0,0.94265]
[1724756444291,0.0019053,62458.0,62457.0,0.27921]
[1724756444729,0.0019053,62458.0,62457.0,0.91965]
[1724756444952,0.0019053,62458.0,62457.0,0.90565]
[1724756444953,0.0009053,62458.0,62457.0,0.90565]
[1724756445428,0.0009053,62458.0,62457.0,0.91765]
[1724756445429,0.0019053,62458.0,62457.0,0.91765]
[1724756445646,0.0019053,62458.0,62457.0,0.91965]
[1724756445867,0.0029053,62458.0,62457.0,1.25187]
[1724756446080,0.0019053,62458.0,62457.0,1.41978809]
[1724756446549,0.0029053,62458.0,62457.0,1.8367837]
[1724756446777,0.0019053,62458.0,62457.0,1.8247837]
[1724756447431,0.0029053,62458.0,62457.0,1.8367837]
[1724756447652,0.0009053,62470.0,62458.0,1.62384261]
[1724756447876,0.0009053,62470.0,62458.0,2.2259757]
[1724756448095,0.0009053,62470.0,62458.0,1.9057607]
[1724756449479,0.0049053,62459.0,62458.0,2.2369757]
[1724756449717,0.0049053,62459.0,62458.0,1.9167607]
[1724756449947,0.0059053,62459.0,62458.0,1.9307607]
[1724756452519,0.0009053,62470.0,62469.0,1.62608661]
[1724756452734,0.0009053,62470.0,62469.0,2.0282956]
[1724756453812,0.0019053,62470.0,62469.0,2.0422956]
[1724756454015,0.0029053,62470.0,62469.0,2.0542956]
[1724756454223,0.0019053,62470.0,62469.0,2.0402956]
[1724756454447,0.0009053,62470.0,62469.0,2.0282956]
[1724756454658,0.0019053,62470.0,62469.0,2.0422956]
[1724756455780,0.0019053,62470.0,62469.0,2.0562956]
[1724756455990,0.0019053,62470.0,62469.0,2.0422956]
[1724756456177,0.0019053,62470.0,62469.0,2.0562956]
[1724756456431,0.0009053,62470.0,62469.0,2.0422956]
[1724756456884,0.0009053,62470.0,62469.0,2.0562956]
[1724756457091,0.0009053,62470.0,62469.0,2.0282956]
[1724756457535,0.0009053,62470.0,62469.0,2.0562956]
[1724756457983,0.0009053,62470.0,62469.0,2.0422956]
[1724756458207,0.0009053,62470.0,62469.0,2.05531999]
[1724756458625,0.0009053,62470.0,62469.0,1.73516199]
[1724756458844,0.0009053,62470.0,62469.0,1.72116199]
[1724756459079,0.0009053,62470.0,62469.0,1.73516199]
[1724756459566,0.0009053,62470.0,62469.0,0.480237]
[1724756459798,0.0009053,62470.0,62469.0,0.494237]
[1724756460248,0.0009053,62470.0,62469.0,0.508237]
[1724756460485,0.0009053,62470.0,62469.0,0.480237]
[1724756460905,0.0009053,62470.0,62469.0,0.014]
[1724756461118,0.0009053,62470.0,62469.0,0.174079]
[1724756461350,0.0009053,62470.0,62466.0,0.320173]
[1724756461594,0.0009053,62470.0,62468.0,0.16008]
[1724756461826,0.0009053,62470.0,62469.0,0.160079]
[1724756462062,0.0009053,62470.0,62465.0,0.320179]
[1724756462274,0.0958,62469.0,62453.0,0.1059]
[1724756462518,0.0958,62467.0,62456.0,0.0030947]
[1724756462731,0.0958,62467.0,62455.0,0.3233227]
[1724756462732,0.00292854,62466.0,62455.0,0.3233227]
[1724756462962,0.00292854,62466.0,62455.0,0.0030947]
[1724756463194,0.1758,62463.0,62455.0,0.0030947]
[1724756463427,0.1758,62463.0,62448.0,0.160955]
[1724756463428,0.0783,62458.0,62448.0,0.160955]
[1724756463667,0.334207,62458.0,62457.0,0.007823]
[1724756463890,0.654422,62458.0,62457.0,0.007823]
[1724756464110,1.1720993,62458.0,62457.0,0.000823]
[1724756464346,1.1720993,62458.0,62448.0,0.000823]
[1724756464347,1.4923143,62458.0,62448.0,0.000823]
[1724756464589,1.0209429,62449.0,62448.0,0.000823]
[1724756464821,1.64789819,62449.0,62448.0,0.000823]
[1724756465055,1.52860729,62449.0,62448.0,0.000823]